[Event "Titled Tuesday Blitz June 27 Late 2023"]
[White "Bongo Akanga Ndjila, Barthelemy"]
[Black "liwadas82"]
[WhiteFideId "10609431"]
[WhiteElo "2080"]
[BlackElo "2435"]
[Result "0-1"]
[Round "2"]
[TimeControl "180+2"]
[Date "2023.06.27"]
[WhiteClock "0:00:11"]
[BlackClock "0:01:26"]
[Board "187"]

1. d4 {[%clk 0:03:00]}  Nf6 {[%clk 0:02:59]} 2. c4 {[%clk 0:02:59]}  e6 {[%clk 0:03:00]} 3. Nf3 {[%clk 0:02:57]}  Bb4+ {[%clk 0:03:00]} 4. Bd2 {[%clk 0:02:51]}  Qe7 {[%clk 0:03:00]} 5. g3 {[%clk 0:02:51]}  Nc6 {[%clk 0:03:00]} 6. Bg2 {[%clk 0:02:50]}  Bxd2+ {[%clk 0:03:01]} 7. Qxd2 {[%clk 0:02:47]}  Ne4 {[%clk 0:03:01]} 8. Qc2 {[%clk 0:02:38]}  Qb4+ {[%clk 0:03:01]} 9. Nbd2 {[%clk 0:02:37]}  Nxd2 {[%clk 0:03:00]} 10. Qxd2 {[%clk 0:02:30]}  Qxc4 {[%clk 0:03:01]} 11. O-O {[%clk 0:02:24]}  O-O {[%clk 0:02:57]} 12. e3 {[%clk 0:02:23]}  d5 {[%clk 0:02:47]} 13. Rfc1 {[%clk 0:02:17]}  Qa4 {[%clk 0:02:46]} 14. b3 {[%clk 0:02:10]}  Qa3 {[%clk 0:02:46]} 15. Ne5 {[%clk 0:01:27]}  Nxe5 {[%clk 0:02:40]} 16. dxe5 {[%clk 0:01:26]}  Qe7 {[%clk 0:02:29]} 17. e4 {[%clk 0:01:26]}  c6 {[%clk 0:02:25]} 18. exd5 {[%clk 0:01:26]}  exd5 {[%clk 0:02:24]} 19. f4 {[%clk 0:01:25]}  Bf5 {[%clk 0:02:21]} 20. b4 {[%clk 0:01:25]}  Rfd8 {[%clk 0:02:15]} 21. a4 {[%clk 0:01:24]}  d4 {[%clk 0:02:11]} 22. Rc5 {[%clk 0:01:18]}  d3 {[%clk 0:02:06]} 23. Rac1 {[%clk 0:01:18]}  Qd7 {[%clk 0:01:42]} 24. b5 {[%clk 0:01:17]}  cxb5 {[%clk 0:01:39]} 25. Rxb5 {[%clk 0:01:01]}  Qd4+ {[%clk 0:01:37]} 26. Kh1 {[%clk 0:01:01]}  Be4 {[%clk 0:01:35]} 27. Rb4 {[%clk 0:00:43]}  Bxg2+ {[%clk 0:01:35]} 28. Kxg2 {[%clk 0:00:43]}  Qd5+ {[%clk 0:01:31]} 29. Kf2 {[%clk 0:00:39]}  Rac8 {[%clk 0:01:30]} 30. Rxc8 {[%clk 0:00:18]}  Rxc8 {[%clk 0:01:31]} 31. Rb2 {[%clk 0:00:18]}  Qd4+ {[%clk 0:01:28]} 32. Kg2 {[%clk 0:00:17]}  Qxb2 {[%clk 0:01:25]} 33. Qxb2 {[%clk 0:00:11]}  Rc2+ {[%clk 0:01:26]} 0-1


[Site "https://www.chess.com"]

[Event "Titled Tuesday Blitz June 27 Late 2023"]
[White "Gasparyan, David"]
[Black "Allam, Yara"]
[WhiteFideId "13311980"]
[BlackFideId "10615709"]
[WhiteElo "2432"]
[BlackElo "2069"]
[Result "1-0"]
[Round "2"]
[TimeControl "180+2"]
[Date "2023.06.27"]
[WhiteClock "0:00:10"]
[BlackClock "0:00:05"]
[Board "188"]

1. d4 {[%clk 0:03:00]}  d5 {[%clk 0:02:59]} 2. c4 {[%clk 0:02:57]}  c6 {[%clk 0:02:59]} 3. Nf3 {[%clk 0:02:56]}  Nf6 {[%clk 0:02:59]} 4. g3 {[%clk 0:02:55]}  e6 {[%clk 0:02:59]} 5. Bg2 {[%clk 0:02:54]}  Be7 {[%clk 0:02:59]} 6. O-O {[%clk 0:02:52]}  O-O {[%clk 0:02:58]} 7. Nc3 {[%clk 0:02:50]}  Nbd7 {[%clk 0:02:56]} 8. Qc2 {[%clk 0:02:49]}  Nb6 {[%clk 0:02:49]} 9. c5 {[%clk 0:02:47]}  Nbd7 {[%clk 0:02:48]} 10. Bf4 {[%clk 0:02:47]}  Re8 {[%clk 0:02:44]} 11. b4 {[%clk 0:02:44]}  Bf8 {[%clk 0:02:43]} 12. a4 {[%clk 0:02:43]}  Nh5 {[%clk 0:02:38]} 13. e3 {[%clk 0:02:41]}  h6 {[%clk 0:02:31]} 14. h4 {[%clk 0:02:38]}  Nxf4 {[%clk 0:02:17]} 15. exf4 {[%clk 0:02:32]}  Nf6 {[%clk 0:02:16]} 16. Ne5 {[%clk 0:02:31]}  Bd7 {[%clk 0:02:15]} 17. Rfe1 {[%clk 0:02:28]}  Qc7 {[%clk 0:01:57]} 18. b5 {[%clk 0:02:25]}  a6 {[%clk 0:01:53]} 19. bxc6 {[%clk 0:02:19]}  Bxc6 {[%clk 0:01:46]} 20. Reb1 {[%clk 0:02:11]}  Reb8 {[%clk 0:01:42]} 21. a5 {[%clk 0:02:05]}  Nd7 {[%clk 0:01:36]} 22. Nxc6 {[%clk 0:01:57]}  bxc6 {[%clk 0:01:21]} 23. Bf1 {[%clk 0:01:50]}  Be7 {[%clk 0:01:16]} 24. Rxb8+ {[%clk 0:01:43]}  Qxb8 {[%clk 0:01:16]} 25. Rb1 {[%clk 0:01:34]}  Qc7 {[%clk 0:01:16]} 26. Qa4 {[%clk 0:01:35]}  Bf6 {[%clk 0:01:12]} 27. Ne2 {[%clk 0:01:32]}  Rb8 {[%clk 0:01:06]} 28. Rxb8+ {[%clk 0:01:30]}  Nxb8 {[%clk 0:01:06]} 29. Nc1 {[%clk 0:01:30]}  Bd8 {[%clk 0:01:01]} 30. Nb3 {[%clk 0:01:30]}  g6 {[%clk 0:00:53]} 31. Bd3 {[%clk 0:01:26]}  h5 {[%clk 0:00:46]} 32. Qb4 {[%clk 0:01:23]}  Kg7 {[%clk 0:00:39]} 33. Qb6 {[%clk 0:01:16]}  Kg8 {[%clk 0:00:33]} 34. Kf1 {[%clk 0:00:58]}  Qc8 {[%clk 0:00:29]} 35. Qa7 {[%clk 0:00:57]}  Bc7 {[%clk 0:00:20]} 36. Ke2 {[%clk 0:00:52]}  Kg7 {[%clk 0:00:20]} 37. Kd2 {[%clk 0:00:41]}  Kg8 {[%clk 0:00:20]} 38. Kc3 {[%clk 0:00:41]}  Kg7 {[%clk 0:00:21]} 39. Kb4 {[%clk 0:00:41]}  Kg8 {[%clk 0:00:21]} 40. Ka4 {[%clk 0:00:40]}  Kg7 {[%clk 0:00:22]} 41. Na1 {[%clk 0:00:40]}  Kg8 {[%clk 0:00:22]} 42. Nc2 {[%clk 0:00:40]}  Qd8 {[%clk 0:00:21]} 43. Bxa6 {[%clk 0:00:20]}  Bxa5 {[%clk 0:00:21]} 44. Bb7 {[%clk 0:00:18]}  Bc3 {[%clk 0:00:20]} 45. Nb4 {[%clk 0:00:17]}  Qc7 {[%clk 0:00:20]} 46. Qb6 {[%clk 0:00:15]}  Qxb6 {[%clk 0:00:18]} 47. cxb6 {[%clk 0:00:16]}  Bxd4 {[%clk 0:00:19]} 48. Ka5 {[%clk 0:00:16]}  Bxf2 {[%clk 0:00:19]} 49. Bxc6 {[%clk 0:00:15]}  Bxg3 {[%clk 0:00:19]} 50. b7 {[%clk 0:00:14]}  Bxf4 {[%clk 0:00:19]} 51. Kb6 {[%clk 0:00:14]}  e5 {[%clk 0:00:20]} 52. Na6 {[%clk 0:00:14]}  e4 {[%clk 0:00:20]} 53. Bxd5 {[%clk 0:00:13]}  e3 {[%clk 0:00:20]} 54. Bf3 {[%clk 0:00:13]}  Be5 {[%clk 0:00:20]} 55. Nc5 {[%clk 0:00:13]}  f6 {[%clk 0:00:19]} 56. Ne6 {[%clk 0:00:12]}  Kf7 {[%clk 0:00:19]} 57. Nd8+ {[%clk 0:00:11]}  Ke7 {[%clk 0:00:19]} 58. Nc6+ {[%clk 0:00:11]}  Kd6 {[%clk 0:00:19]} 59. Nxb8 {[%clk 0:00:11]}  Ke7 {[%clk 0:00:16]} 60. Nc6+ {[%clk 0:00:11]}  Kd7 {[%clk 0:00:17]} 61. Nxe5+ {[%clk 0:00:11]}  fxe5 {[%clk 0:00:05]} 62. b8=Q {[%clk 0:00:10]} 1-0


[Site "https://www.chess.com"]

[Event "Titled Tuesday Blitz June 27 Late 2023"]
[White "zsizsi99"]
[Black "Ng, Matthew K"]
[BlackFideId "2094371"]
[WhiteElo "2428"]
[BlackElo "2067"]
[Result "1-0"]
[Round "2"]
[TimeControl "180+2"]
[Date "2023.06.27"]
[WhiteClock "0:01:49"]
[BlackClock "0:00:00"]
[Board "189"]

1. e4 {[%clk 0:02:59]}  c5 {[%clk 0:02:57]} 2. b3 {[%clk 0:02:54]}  Nc6 {[%clk 0:02:56]} 3. Bb2 {[%clk 0:02:54]}  d6 {[%clk 0:02:56]} 4. Bb5 {[%clk 0:02:54]}  e5 {[%clk 0:02:54]} 5. f4 {[%clk 0:02:50]}  Ne7 {[%clk 0:02:52]} 6. fxe5 {[%clk 0:02:47]}  dxe5 {[%clk 0:02:43]} 7. Bxe5 {[%clk 0:02:47]}  a6 {[%clk 0:02:41]} 8. Bxc6+ {[%clk 0:02:41]}  Nxc6 {[%clk 0:02:41]} 9. Bb2 {[%clk 0:02:27]}  Qg5 {[%clk 0:02:23]} 10. Qe2 {[%clk 0:02:23]}  Nd4 {[%clk 0:02:03]} 11. Bxd4 {[%clk 0:02:21]}  cxd4 {[%clk 0:02:03]} 12. Nf3 {[%clk 0:02:21]}  Qc5 {[%clk 0:02:01]} 13. Qc4 {[%clk 0:02:20]}  Qxc4 {[%clk 0:01:56]} 14. bxc4 {[%clk 0:02:20]}  Bc5 {[%clk 0:01:55]} 15. d3 {[%clk 0:02:20]}  Bg4 {[%clk 0:01:55]} 16. h3 {[%clk 0:02:16]}  Bxf3 {[%clk 0:01:35]} 17. gxf3 {[%clk 0:02:17]}  Ke7 {[%clk 0:01:32]} 18. Ke2 {[%clk 0:02:16]}  Bb4 {[%clk 0:01:20]} 19. a3 {[%clk 0:02:14]}  Ba5 {[%clk 0:01:15]} 20. Nd2 {[%clk 0:02:14]}  Rab8 {[%clk 0:01:12]} 21. Rab1 {[%clk 0:02:14]}  Bc3 {[%clk 0:01:07]} 22. Nb3 {[%clk 0:02:15]}  Rhc8 {[%clk 0:01:04]} 23. Rhg1 {[%clk 0:02:14]}  g6 {[%clk 0:01:03]} 24. Rg5 {[%clk 0:02:15]}  Kf6 {[%clk 0:01:00]} 25. Rd5 {[%clk 0:02:15]}  b5 {[%clk 0:00:48]} 26. cxb5 {[%clk 0:01:55]}  axb5 {[%clk 0:00:47]} 27. Nc5 {[%clk 0:01:55]}  b4 {[%clk 0:00:39]} 28. Nd7+ {[%clk 0:01:55]}  Ke6 {[%clk 0:00:32]} 29. Nxb8 {[%clk 0:01:54]}  Rxb8 {[%clk 0:00:32]} 30. axb4 {[%clk 0:01:53]}  Rxb4 {[%clk 0:00:20]} 31. Rxb4 {[%clk 0:01:49]}  Bxb4 {[%clk 0:00:20]} 32. Rxd4 {[%clk 0:01:50]}  Be7 {[%clk 0:00:16]} 33. Ra4 {[%clk 0:01:48]}  f5 {[%clk 0:00:00]} 34. d4 {[%clk 0:01:49]} 1-0


[Site "https://www.chess.com"]

[Event "Titled Tuesday Blitz June 27 Late 2023"]
[White "Alberto, Manuel"]
[Black "Rangel, Daniel"]
[WhiteFideId "10100148"]
[BlackFideId "2124475"]
[WhiteElo "2007"]
[BlackElo "2424"]
[Result "0-1"]
[Round "2"]
[TimeControl "180+2"]
[Date "2023.06.27"]
[WhiteClock "0:00:00"]
[BlackClock "0:00:31"]
[Board "191"]

1. e4 {[%clk 0:02:56]}  c5 {[%clk 0:03:00]} 2. Nf3 {[%clk 0:02:52]}  g6 {[%clk 0:02:59]} 3. d4 {[%clk 0:02:51]}  cxd4 {[%clk 0:03:00]} 4. Qxd4 {[%clk 0:02:51]}  Nf6 {[%clk 0:03:00]} 5. e5 {[%clk 0:02:51]}  Nc6 {[%clk 0:03:01]} 6. Qa4 {[%clk 0:02:51]}  Nd5 {[%clk 0:03:01]} 7. Bd3 {[%clk 0:02:49]}  Ndb4 {[%clk 0:02:59]} 8. Be4 {[%clk 0:02:46]}  Na6 {[%clk 0:02:50]} 9. Be3 {[%clk 0:02:42]}  Bg7 {[%clk 0:02:50]} 10. Bxc6 {[%clk 0:02:38]}  dxc6 {[%clk 0:02:46]} 11. Nc3 {[%clk 0:02:35]}  O-O {[%clk 0:02:43]} 12. O-O {[%clk 0:02:32]}  Qc7 {[%clk 0:02:37]} 13. Qf4 {[%clk 0:02:26]}  h6 {[%clk 0:02:26]} 14. h4 {[%clk 0:02:20]}  Bf5 {[%clk 0:02:24]} 15. Rac1 {[%clk 0:02:17]}  h5 {[%clk 0:02:21]} 16. Rfe1 {[%clk 0:02:16]}  Bg4 {[%clk 0:02:12]} 17. Bd4 {[%clk 0:01:50]}  Rad8 {[%clk 0:02:03]} 18. Ne2 {[%clk 0:01:38]}  c5 {[%clk 0:01:55]} 19. Bc3 {[%clk 0:01:37]}  Nb4 {[%clk 0:01:46]} 20. Bxb4 {[%clk 0:01:35]}  cxb4 {[%clk 0:01:33]} 21. Ned4 {[%clk 0:01:24]}  Qc4 {[%clk 0:01:27]} 22. b3 {[%clk 0:01:20]}  Qc5 {[%clk 0:01:21]} 23. Qe3 {[%clk 0:01:15]}  Rd5 {[%clk 0:01:16]} 24. c4 {[%clk 0:01:13]}  bxc3 {[%clk 0:00:58]} 25. Rxc3 {[%clk 0:01:12]}  Qb6 {[%clk 0:00:51]} 26. Rc4 {[%clk 0:01:05]}  Rfd8 {[%clk 0:00:50]} 27. a4 {[%clk 0:00:52]}  a5 {[%clk 0:00:49]} 28. Qe4 {[%clk 0:00:12]}  e6 {[%clk 0:00:46]} 29. Re3 {[%clk 0:00:06]}  Bh6 {[%clk 0:00:46]} 30. Rec3 {[%clk 0:00:06]}  Bf5 {[%clk 0:00:42]} 31. Nxf5 {[%clk 0:00:05]}  exf5 {[%clk 0:00:37]} 32. Qe2 {[%clk 0:00:00]}  Kg7 {[%clk 0:00:31]} 0-1


[Site "https://www.chess.com"]

[Event "Titled Tuesday Blitz June 27 Late 2023"]
[White "NtcPou"]
[Black "Gulamali, Kazim"]
[BlackFideId "2024764"]
[WhiteElo "1972"]
[BlackElo "2418"]
[Result "0-1"]
[Round "2"]
[TimeControl "180+2"]
[Date "2023.06.27"]
[WhiteClock "0:00:18"]
[BlackClock "0:00:31"]
[Board "193"]

1. e4 {[%clk 0:02:59]}  c5 {[%clk 0:03:00]} 2. Nf3 {[%clk 0:02:58]}  d6 {[%clk 0:03:00]} 3. Bb5+ {[%clk 0:02:58]}  Nd7 {[%clk 0:03:00]} 4. a4 {[%clk 0:02:57]}  Nf6 {[%clk 0:03:00]} 5. Nc3 {[%clk 0:02:56]}  g6 {[%clk 0:02:59]} 6. O-O {[%clk 0:02:56]}  Bg7 {[%clk 0:02:57]} 7. d4 {[%clk 0:02:56]}  cxd4 {[%clk 0:02:57]} 8. Nxd4 {[%clk 0:02:57]}  O-O {[%clk 0:02:57]} 9. Re1 {[%clk 0:02:57]}  a6 {[%clk 0:02:47]} 10. Bf1 {[%clk 0:02:56]}  e5 {[%clk 0:02:45]} 11. Nb3 {[%clk 0:02:45]}  Qc7 {[%clk 0:02:46]} 12. a5 {[%clk 0:02:37]}  h6 {[%clk 0:02:31]} 13. Be3 {[%clk 0:02:37]}  Re8 {[%clk 0:02:31]} 14. Qd2 {[%clk 0:02:37]}  Ng4 {[%clk 0:02:28]} 15. Nd5 {[%clk 0:02:30]}  Qd8 {[%clk 0:02:28]} 16. Bb6 {[%clk 0:02:26]}  Nxb6 {[%clk 0:02:27]} 17. Nxb6 {[%clk 0:02:27]}  Rb8 {[%clk 0:02:27]} 18. f3 {[%clk 0:02:27]}  Nf6 {[%clk 0:02:26]} 19. Rad1 {[%clk 0:02:25]}  Be6 {[%clk 0:02:25]} 20. Qxd6 {[%clk 0:02:21]}  Qxd6 {[%clk 0:02:25]} 21. Rxd6 {[%clk 0:02:21]}  Bf8 {[%clk 0:02:23]} 22. Rd3 {[%clk 0:02:14]}  Bb4 {[%clk 0:01:15]} 23. c3 {[%clk 0:01:59]}  Bxb3 {[%clk 0:01:15]} 24. cxb4 {[%clk 0:01:59]}  Be6 {[%clk 0:01:16]} 25. Red1 {[%clk 0:01:56]}  Kf8 {[%clk 0:01:16]} 26. Rc3 {[%clk 0:01:47]}  Re7 {[%clk 0:01:09]} 27. Rdc1 {[%clk 0:01:41]}  Ne8 {[%clk 0:01:09]} 28. Kf2 {[%clk 0:01:33]}  f5 {[%clk 0:01:08]} 29. Ke3 {[%clk 0:01:31]}  f4+ {[%clk 0:01:08]} 30. Kf2 {[%clk 0:01:29]}  g5 {[%clk 0:01:08]} 31. Bc4 {[%clk 0:01:26]}  Bxc4 {[%clk 0:01:05]} 32. Rxc4 {[%clk 0:01:26]}  Rd8 {[%clk 0:01:06]} 33. Ke2 {[%clk 0:01:24]}  Nd6 {[%clk 0:01:03]} 34. Rc7 {[%clk 0:01:22]}  Nb5 {[%clk 0:00:57]} 35. Nd5 {[%clk 0:01:06]}  Rxc7 {[%clk 0:00:34]} 36. Nxc7 {[%clk 0:01:05]}  Nd4+ {[%clk 0:00:35]} 37. Kf2 {[%clk 0:01:01]}  Kf7 {[%clk 0:00:35]} 38. Nd5 {[%clk 0:00:59]}  Nc6 {[%clk 0:00:35]} 39. Rc5 {[%clk 0:00:50]}  Ke6 {[%clk 0:00:33]} 40. Ke2 {[%clk 0:00:43]}  Kd6 {[%clk 0:00:33]} 41. Rc4 {[%clk 0:00:32]}  h5 {[%clk 0:00:32]} 42. Kd3 {[%clk 0:00:31]}  g4 {[%clk 0:00:33]} 43. Ke2 {[%clk 0:00:26]}  Rg8 {[%clk 0:00:30]} 44. Rc2 {[%clk 0:00:24]}  Nd4+ {[%clk 0:00:30]} 45. Kd3 {[%clk 0:00:22]}  Nxc2 {[%clk 0:00:30]} 46. Kxc2 {[%clk 0:00:22]}  gxf3 {[%clk 0:00:30]} 47. gxf3 {[%clk 0:00:22]}  Rg2+ {[%clk 0:00:31]} 48. Kd3 {[%clk 0:00:22]}  Rxh2 {[%clk 0:00:32]} 49. Nb6 {[%clk 0:00:20]}  h4 {[%clk 0:00:31]} 50. Nc4+ {[%clk 0:00:20]}  Ke6 {[%clk 0:00:32]} 51. Nb6 {[%clk 0:00:18]}  Rxb2 {[%clk 0:00:31]} 0-1


[Site "https://www.chess.com"]

[Event "Titled Tuesday Blitz June 27 Late 2023"]
[White "Vargas, Mauricio"]
[Black "i_like_explosions"]
[WhiteFideId "4404572"]
[WhiteElo "1837"]
[BlackElo "2416"]
[Result "0-1"]
[Round "2"]
[TimeControl "180+2"]
[Date "2023.06.27"]
[WhiteClock "0:01:33"]
[BlackClock "0:02:17"]
[Board "196"]

1. e4 {[%clk 0:02:57]}  c5 {[%clk 0:02:59]} 2. Nc3 {[%clk 0:02:54]}  a6 {[%clk 0:02:59]} 3. f4 {[%clk 0:02:55]}  b5 {[%clk 0:03:00]} 4. Nf3 {[%clk 0:02:56]}  Bb7 {[%clk 0:03:01]} 5. g4 {[%clk 0:02:55]}  e6 {[%clk 0:03:00]} 6. d3 {[%clk 0:02:54]}  d5 {[%clk 0:03:00]} 7. e5 {[%clk 0:02:54]}  h5 {[%clk 0:02:57]} 8. g5 {[%clk 0:02:49]}  Ne7 {[%clk 0:02:57]} 9. Bg2 {[%clk 0:02:45]}  Nf5 {[%clk 0:02:57]} 10. O-O {[%clk 0:02:41]}  g6 {[%clk 0:02:55]} 11. Ne2 {[%clk 0:02:36]}  Nc6 {[%clk 0:02:52]} 12. c3 {[%clk 0:02:29]}  Qb6 {[%clk 0:02:50]} 13. Kh1 {[%clk 0:02:24]}  Be7 {[%clk 0:02:48]} 14. Ng3 {[%clk 0:02:24]}  Nxg3+ {[%clk 0:02:44]} 15. hxg3 {[%clk 0:02:24]}  O-O-O {[%clk 0:02:42]} 16. Nh4 {[%clk 0:02:20]}  Rd7 {[%clk 0:02:38]} 17. Bh3 {[%clk 0:02:16]}  Bd8 {[%clk 0:02:34]} 18. Nxg6 {[%clk 0:02:07]}  fxg6 {[%clk 0:02:35]} 19. Bxe6 {[%clk 0:02:07]}  Ne7 {[%clk 0:02:36]} 20. Bxd7+ {[%clk 0:02:04]}  Kxd7 {[%clk 0:02:37]} 21. Be3 {[%clk 0:01:47]}  d4+ {[%clk 0:02:34]} 22. Kg1 {[%clk 0:01:38]}  dxe3 {[%clk 0:02:22]} 23. Qb3 {[%clk 0:01:35]}  Qc6 {[%clk 0:02:18]} 24. Qf7 {[%clk 0:01:33]}  Qg2# {[%clk 0:02:17]} 0-1


[Site "https://www.chess.com"]

[Event "Titled Tuesday Blitz June 27 Late 2023"]
[White "Bryakin, Mikhail"]
[Black "Bluebaum, Matthias"]
[WhiteFideId "4165314"]
[BlackFideId "24651516"]
[WhiteElo "2751"]
[BlackElo "3067"]
[Result "0-1"]
[Round "3"]
[TimeControl "180+2"]
[Date "2023.06.27"]
[WhiteClock "0:00:36"]
[BlackClock "0:01:25"]
[Board "6"]

1. c4 {[%clk 0:03:00]}  e6 {[%clk 0:03:00]} 2. Nf3 {[%clk 0:02:58]}  d5 {[%clk 0:03:01]} 3. d4 {[%clk 0:02:59]}  Nf6 {[%clk 0:03:01]} 4. g3 {[%clk 0:02:59]}  Nc6 {[%clk 0:03:01]} 5. Bg2 {[%clk 0:02:55]}  Bd6 {[%clk 0:03:02]} 6. Nbd2 {[%clk 0:02:49]}  O-O {[%clk 0:02:59]} 7. O-O {[%clk 0:02:49]}  a5 {[%clk 0:03:00]} 8. Re1 {[%clk 0:02:43]}  Ne4 {[%clk 0:02:59]} 9. c5 {[%clk 0:02:34]}  Be7 {[%clk 0:02:58]} 10. e3 {[%clk 0:02:35]}  f5 {[%clk 0:02:58]} 11. b3 {[%clk 0:02:28]}  b6 {[%clk 0:02:58]} 12. cxb6 {[%clk 0:02:25]}  cxb6 {[%clk 0:02:59]} 13. Bb2 {[%clk 0:02:24]}  Ba6 {[%clk 0:02:58]} 14. Bf1 {[%clk 0:02:24]}  Bxf1 {[%clk 0:02:56]} 15. Rxf1 {[%clk 0:02:24]}  Qd7 {[%clk 0:02:53]} 16. a3 {[%clk 0:02:18]}  Rfc8 {[%clk 0:02:51]} 17. Ne1 {[%clk 0:02:15]}  a4 {[%clk 0:02:48]} 18. b4 {[%clk 0:02:08]}  Na7 {[%clk 0:02:39]} 19. f3 {[%clk 0:02:05]}  Nxd2 {[%clk 0:02:30]} 20. Qxd2 {[%clk 0:02:05]}  Nb5 {[%clk 0:02:30]} 21. Nd3 {[%clk 0:02:04]}  Nd6 {[%clk 0:02:30]} 22. Rac1 {[%clk 0:02:01]}  Qb5 {[%clk 0:02:26]} 23. Rxc8+ {[%clk 0:01:54]}  Rxc8 {[%clk 0:02:27]} 24. Rc1 {[%clk 0:01:51]}  Nc4 {[%clk 0:02:27]} 25. Qe1 {[%clk 0:01:33]}  Bd6 {[%clk 0:02:25]} 26. Kf2 {[%clk 0:01:28]}  Rc6 {[%clk 0:02:24]} 27. Rc3 {[%clk 0:01:26]}  h6 {[%clk 0:02:03]} 28. f4 {[%clk 0:01:25]}  Be7 {[%clk 0:01:58]} 29. Qc1 {[%clk 0:01:15]}  Bd6 {[%clk 0:01:48]} 30. Kf3 {[%clk 0:01:08]}  Rc8 {[%clk 0:01:46]} 31. h4 {[%clk 0:01:07]}  Qe8 {[%clk 0:01:42]} 32. Kf2 {[%clk 0:01:07]}  g5 {[%clk 0:01:38]} 33. hxg5 {[%clk 0:01:05]}  hxg5 {[%clk 0:01:39]} 34. Qd1 {[%clk 0:00:51]}  Nxb2 {[%clk 0:01:26]} 35. Qc2 {[%clk 0:00:36]}  Rxc3 {[%clk 0:01:25]} 0-1


[Site "https://www.chess.com"]

[Event "Titled Tuesday Blitz June 27 Late 2023"]
[White "Mamedov, Rauf"]
[Black "Tiglon, Bryce"]
[WhiteFideId "13401653"]
[BlackFideId "2087456"]
[WhiteElo "3062"]
[BlackElo "2749"]
[Result "0-1"]
[Round "3"]
[TimeControl "180+2"]
[Date "2023.06.27"]
[WhiteClock "0:00:03"]
[BlackClock "0:00:06"]
[Board "7"]

1. e4 {[%clk 0:03:00]}  g6 {[%clk 0:03:00]} 2. d4 {[%clk 0:03:00]}  Bg7 {[%clk 0:03:01]} 3. Nc3 {[%clk 0:03:00]}  d6 {[%clk 0:03:01]} 4. Nf3 {[%clk 0:02:58]}  b6 {[%clk 0:03:02]} 5. Bc4 {[%clk 0:02:58]}  e6 {[%clk 0:03:00]} 6. Bb3 {[%clk 0:02:58]}  Bb7 {[%clk 0:02:59]} 7. Qe2 {[%clk 0:02:55]}  Ne7 {[%clk 0:02:52]} 8. Bf4 {[%clk 0:02:50]}  a6 {[%clk 0:02:48]} 9. h4 {[%clk 0:02:46]}  h6 {[%clk 0:02:47]} 10. O-O-O {[%clk 0:02:33]}  Nd7 {[%clk 0:02:45]} 11. Kb1 {[%clk 0:02:33]}  Qc8 {[%clk 0:02:27]} 12. h5 {[%clk 0:02:12]}  g5 {[%clk 0:02:27]} 13. Nxg5 {[%clk 0:02:12]}  hxg5 {[%clk 0:02:25]} 14. Bxg5 {[%clk 0:02:13]}  Bh6 {[%clk 0:02:06]} 15. Bxh6 {[%clk 0:02:09]}  Rxh6 {[%clk 0:02:06]} 16. g4 {[%clk 0:02:10]}  Nf8 {[%clk 0:01:57]} 17. g5 {[%clk 0:02:10]}  Rh8 {[%clk 0:01:57]} 18. f4 {[%clk 0:01:48]}  Qd7 {[%clk 0:01:57]} 19. f5 {[%clk 0:01:25]}  exf5 {[%clk 0:01:40]} 20. exf5 {[%clk 0:01:25]}  O-O-O {[%clk 0:01:23]} 21. f6 {[%clk 0:01:21]}  Nf5 {[%clk 0:01:23]} 22. Rh3 {[%clk 0:01:06]}  Nxd4 {[%clk 0:01:23]} 23. Rxd4 {[%clk 0:00:51]}  Qxh3 {[%clk 0:01:23]} 24. Bxf7 {[%clk 0:00:52]}  Nd7 {[%clk 0:01:16]} 25. a3 {[%clk 0:00:27]}  Ne5 {[%clk 0:01:14]} 26. Bg6 {[%clk 0:00:28]}  Kb8 {[%clk 0:00:39]} 27. Qf2 {[%clk 0:00:18]}  Nf3 {[%clk 0:00:33]} 28. Rd3 {[%clk 0:00:16]}  Qg4 {[%clk 0:00:33]} 29. f7 {[%clk 0:00:13]}  Ne5 {[%clk 0:00:31]} 30. Rg3 {[%clk 0:00:13]}  Qe6 {[%clk 0:00:28]} 31. Bd3 {[%clk 0:00:07]}  Nxf7 {[%clk 0:00:20]} 32. g6 {[%clk 0:00:07]}  Ne5 {[%clk 0:00:19]} 33. Be2 {[%clk 0:00:08]}  Rhf8 {[%clk 0:00:18]} 34. Qg1 {[%clk 0:00:08]}  Rg8 {[%clk 0:00:10]} 35. b3 {[%clk 0:00:06]}  Qf6 {[%clk 0:00:09]} 36. Bd3 {[%clk 0:00:03]}  Qf4 {[%clk 0:00:09]} 37. h6 {[%clk 0:00:03]}  Qxh6 {[%clk 0:00:08]} 38. Bf5 {[%clk 0:00:03]}  Rdf8 {[%clk 0:00:08]} 39. Be4 {[%clk 0:00:02]}  Bxe4 {[%clk 0:00:07]} 40. Nxe4 {[%clk 0:00:03]}  Rxg6 {[%clk 0:00:07]} 41. Nxd6 {[%clk 0:00:03]}  Rxd6 {[%clk 0:00:06]} 42. Qxb6+ {[%clk 0:00:03]}  Rxb6 {[%clk 0:00:06]} 0-1


[Site "https://www.chess.com"]

[Event "Titled Tuesday Blitz June 27 Late 2023"]
[White "Mahdavi, Reza"]
[Black "Pranesh M"]
[WhiteFideId "12595926"]
[BlackFideId "35028600"]
[WhiteElo "2742"]
[BlackElo "3033"]
[Result "1-0"]
[Round "3"]
[TimeControl "180+2"]
[Date "2023.06.27"]
[WhiteClock "0:01:03"]
[BlackClock "0:01:06"]
[Board "8"]

1. e4 {[%clk 0:02:18]}  e5 {[%clk 0:02:59]} 2. Nf3 {[%clk 0:02:18]}  Nc6 {[%clk 0:03:00]} 3. Nc3 {[%clk 0:02:19]}  Nf6 {[%clk 0:03:00]} 4. d4 {[%clk 0:02:20]}  exd4 {[%clk 0:03:01]} 5. Nxd4 {[%clk 0:02:21]}  Bb4 {[%clk 0:03:02]} 6. Nxc6 {[%clk 0:02:21]}  bxc6 {[%clk 0:03:02]} 7. Bd3 {[%clk 0:02:22]}  d5 {[%clk 0:03:03]} 8. Bd2 {[%clk 0:02:22]}  O-O {[%clk 0:03:03]} 9. O-O {[%clk 0:02:21]}  Re8 {[%clk 0:03:02]} 10. Nxd5 {[%clk 0:02:07]}  Nxd5 {[%clk 0:03:01]} 11. exd5 {[%clk 0:02:07]}  Bxd2 {[%clk 0:03:01]} 12. Qxd2 {[%clk 0:02:08]}  cxd5 {[%clk 0:03:02]} 13. Rfe1 {[%clk 0:01:56]}  c5 {[%clk 0:02:58]} 14. Qc3 {[%clk 0:01:43]}  c4 {[%clk 0:02:49]} 15. Bf1 {[%clk 0:01:41]}  Be6 {[%clk 0:02:49]} 16. Rad1 {[%clk 0:01:39]}  Rc8 {[%clk 0:02:47]} 17. Qd4 {[%clk 0:01:35]}  Qa5 {[%clk 0:02:46]} 18. a3 {[%clk 0:01:34]}  c3 {[%clk 0:02:46]} 19. b4 {[%clk 0:01:30]}  Qxa3 {[%clk 0:02:39]} 20. Ra1 {[%clk 0:01:30]}  Qb2 {[%clk 0:02:39]} 21. Bd3 {[%clk 0:01:29]}  Rc4 {[%clk 0:02:04]} 22. Bxc4 {[%clk 0:01:30]}  dxc4 {[%clk 0:02:05]} 23. Rec1 {[%clk 0:01:31]}  Qxb4 {[%clk 0:01:56]} 24. Qxa7 {[%clk 0:01:29]}  h6 {[%clk 0:01:49]} 25. Qa3 {[%clk 0:01:28]}  Qb2 {[%clk 0:01:49]} 26. Qa4 {[%clk 0:01:23]}  Rb8 {[%clk 0:01:32]} 27. h3 {[%clk 0:01:23]}  Bf5 {[%clk 0:01:25]} 28. Kh2 {[%clk 0:01:15]}  Rb4 {[%clk 0:01:22]} 29. Qe8+ {[%clk 0:01:03]}  Kh7 {[%clk 0:01:22]} 30. Qxf7 {[%clk 0:01:03]}  Bxc2 {[%clk 0:01:21]} 31. Ra7 {[%clk 0:01:03]}  Qxc1 {[%clk 0:01:06]} 32. Qxg7# {[%clk 0:01:03]} 1-0


[Site "https://www.chess.com"]